fUSD/lending_fUSD_20250512
["ID","MTS","AMOUNT","RATE_DAILY","PERIOD"]
[360838696,1747064253211,-1000.0,0.00044658,30]
[360838697,1747064253274,-1371.79242,0.00044688,30]
[360838698,1747064253325,-5764.91726515,0.000447,120]
[360838699,1747064253379,-150.0,0.000448,120]
[360838700,1747064253431,-1253.80711414,0.0004487,120]
[360838701,1747064253484,-1371.79242,0.00044888,30]
[360838702,1747064253537,-179.82566087,0.000449,30]
[360838703,1747064253588,-3699.78785703,0.000449,30]
[360838704,1747064253637,-2000.0,0.000449,30]
[360838705,1747064253687,-5000.0,0.000449,30]
[360838706,1747064253735,-5000.0,0.000449,30]
[360838707,1747064253782,-5000.0,0.000449,30]
[360838708,1747064253831,-2000.0,0.000449,30]
[360838709,1747064253880,-2000.0,0.000449,30]
[360838710,1747064253927,-2000.0,0.000449,30]
[360838711,1747064253979,-1034.04260918,0.000449,30]
[360838712,1747064254030,-831.0,0.000449,30]
[360838713,1747064254079,-5000.0,0.000449,120]
[360838714,1747064254128,-151.69725342,0.000449,120]
[360838715,1747064254178,-151.6972534,0.000449,120]
[360838716,1747064254229,-151.6972534,0.000449,120]
[360838717,1747064254286,-151.6972534,0.000449,120]
[360838718,1747064254342,-151.6972534,0.000449,120]
[360838719,1747064254432,-151.6972534,0.000449,120]
[360838720,1747064254554,-494.38555758,0.0004499,30]
[360838721,1747064254861,-152.3768598,0.00044998,120]
[360838722,1747064254904,-50000.0,0.00045,45]
[360838723,1747064254945,-2982.6884929,0.00045,120]
[360838724,1747064254993,-470.15739223,0.00045,120]
[360838725,1747064255034,-159.22881767,0.00045,32]
[360838726,1747064255072,-197.74615745,0.00045,60]
[360838727,1747064255111,-597.59360807,0.00045,120]
[360838728,1747064255154,-3913.11680029,0.00045,120]
[360838729,1747064255197,-4996.07486056,0.00045,30]
[360838730,1747064255240,-5476.32548792,0.00045,120]
[360838731,1747064255283,-3358.0,0.00045,120]
[360838732,1747064255326,-1652.0,0.00045,120]
[360838733,1747064255367,-1000.0,0.00045,120]
[360838734,1747064255410,-244159.65020825,0.00045,120]
[360838735,1747064255452,-311795.40947343,0.00045,60]
[360838736,1747064257921,-1000.0,0.0004308,30]
[360838737,1747064257949,-522.26956498,0.0004308,30]
[360838738,1747064257978,-784.16391806,0.0004308,30]
[360838739,1747064258005,-7903.60350371,0.0004308,30]
[360838740,1747064258032,-627.54109733,0.0004308,30]
[360838741,1747064258058,-279.91107367,0.0004308,30]
[360838742,1747064258083,-345.18219159,0.0004308,30]
[360838743,1747064258108,-194.76256858,0.0004308,30]
[360838744,1747064258134,-240.95962082,0.0004308,30]
[360838745,1747064258164,-327.36512391,0.0004308,30]
[360838746,1747064258196,-286.21503148,0.0004308,30]
[360838747,1747064258221,-261.80658592,0.0004308,30]
[360838748,1747064258249,-542.82054851,0.0004308,30]
[360838749,1747064258276,-2419.39479949,0.0004308,30]
[360838750,1747064258301,-413.04217482,0.0004308,30]
[360838751,1747064258327,-273.37976412,0.0004308,30]
[360838752,1747064258354,-6259.45682149,0.0004308,30]
[360838753,1747064258380,-690.10890576,0.0004308,30]
[360838754,1747064258407,-272729.79,0.0004308,30]
[360838755,1747064258434,-178.0,0.0004308,31]
[360838756,1747064258460,-177.0,0.0004308,31]
[360838757,1747064258487,-160.0,0.0004308,30]
[360838758,1747064258514,-160.0,0.0004308,30]
[360838759,1747064258543,-160.0,0.0004308,30]
[360838760,1747064258570,-160.0,0.0004308,30]
[360838761,1747064258596,-160.0,0.0004308,30]
[360838762,1747064258623,-160.0,0.0004308,30]
[360838763,1747064258652,-160.0,0.0004308,30]
[360838764,1747064258678,-160.0,0.0004308,30]
[360838765,1747064258704,-160.0,0.0004308,30]
[360838766,1747064258732,-160.0,0.0004308,30]
[360838767,1747064258758,-160.0,0.0004308,30]
[360838768,1747064258783,-160.0,0.0004308,30]
[360838769,1747064258809,-160.0,0.0004308,30]
[360838770,1747064258834,-160.0,0.0004308,30]
[360838771,1747064258859,-160.0,0.0004308,30]
[360838772,1747064258884,-160.0,0.0004308,30]
[360838773,1747064258909,-160.0,0.0004308,30]
[360838774,1747064258934,-160.0,0.0004308,30]
[360838775,1747064258959,-160.0,0.0004308,30]
[360838776,1747064258989,-160.0,0.0004308,30]
[360838777,1747064259014,-160.0,0.0004308,30]
[360838778,1747064259039,-160.0,0.0004308,30]
[360838779,1747064259064,-160.0,0.0004308,30]
[360838780,1747064259090,-160.0,0.0004308,30]
[360838781,1747064259115,-160.0,0.0004308,30]
[360838782,1747064259140,-160.0,0.0004308,30]
[360838783,1747064259167,-160.0,0.0004308,30]
[360838784,1747064259193,-160.0,0.0004308,30]
[360838785,1747064259220,-160.0,0.0004308,30]
[360838786,1747064259252,-160.0,0.0004308,30]
[360838787,1747064259277,-2292.7067,0.0004308,30]
[360838788,1747064259303,-152.41768156,0.0004308,30]
[360838789,1747064259336,-161.34837577,0.0004308,30]
[360838790,1747064259362,-1094.33669953,0.0004308,30]
[360838791,1747064259388,-193.33636145,0.0004308,30]
[360838792,1747064259414,-4207.10659914,0.0004308,30]
[360838793,1747064259439,-456.75486771,0.0004308,30]
[360838794,1747064259464,-300.0,0.0004308,30]
[360838795,1747064259492,-300.0,0.0004308,30]
[360838796,1747064259519,-300.0,0.0004308,30]
[360838797,1747064259544,-300.0,0.0004308,30]
[360838798,1747064259569,-300.0,0.0004308,30]
[360838799,1747064259595,-300.0,0.0004308,30]
[360838800,1747064259619,-300.0,0.0004308,30]
[360838801,1747064259816,-300.0,0.0004308,30]
[360838802,1747064259844,-300.0,0.0004308,30]
[360838803,1747064259873,-300.0,0.0004308,30]
[360838804,1747064259900,-545005.15,0.0004308,30]
[360838805,1747064259926,-1000.0,0.0004308,30]
[360838806,1747064260164,-106001.77862788,0.0004308,30]
[360838807,1747064260194,-4035178.29079272,0.0004308,60]
[360838808,1747064300616,-5000000.0,0.0004308,60]
[360838809,1747064305376,-548.0,0.00030613,30]
[360838810,1747064305421,-768.0,0.00033674,30]
[360838811,1747064305459,-591.0,0.00037042,30]
[360838812,1747064305489,-1827.40950321,0.000372,120]
[360838813,1747064305525,-1827.40950321,0.000372,120]
[360838814,1747064305552,-1827.40950321,0.000372,120]
[360838815,1747064305579,-1827.40950321,0.000372,120]
[360838816,1747064305606,-1827.40950321,0.000372,120]
[360838817,1747064305637,-1400.0,0.0003846,60]
[360838818,1747064305665,-1400.0,0.00039008,60]
[360838819,1747064305692,-1400.0,0.00039556,60]
[360838820,1747064305720,-1400.0,0.00040104,60]
[360838821,1747064305747,-1400.0,0.00040652,60]
[360838822,1747064305780,-1000.0,0.00040951,30]
[360838823,1747064305808,-1400.0,0.000412,60]
[360838824,1747064305835,-203.69,0.0004198,120]
[360838825,1747064305861,-150.5,0.0004199,120]
[360838826,1747064305888,-1400.0,0.00042296,60]
[360838827,1747064305914,-628.26366463,0.00042899,30]
[360838828,1747064305940,-628.26366463,0.00043079,30]
[360838829,1747064305996,-600.0,0.00043301,35]
[360838830,1747064306030,-600.0,0.00043301,45]
[360838831,1747064306056,-600.0,0.00043301,49]
[360838832,1747064306082,-600.0,0.00043301,50]
[360838833,1747064306107,-600.0,0.00043301,60]
[360838834,1747064306133,-600.0,0.00043301,90]
[360838835,1747064306159,-600.0,0.00043301,91]
[360838836,1747064306187,-600.0,0.00043301,120]
[360838837,1747064306212,-1400.0,0.00043392,60]
[360838838,1747064306240,-600.0,0.00043835,30]
[360838839,1747064306270,-313.78,0.00044,120]
[360838840,1747064306300,-738.2967468,0.00044,120]
[360838841,1747064306327,-309.26,0.00044,120]
[360838842,1747064306357,-1400.0,0.00044488,120]
[360838843,1747064306386,-389134.77808521,0.00045,60]
[360838844,1747064306414,-386267.71726348,0.00045,30]
[360838845,1747064306443,-3541.999999,0.00045,120]
[360838846,1747064306471,-5519.19684416,0.00045,60]
[360838847,1747064306501,-900.0,0.00045,46]
[360838848,1747064306535,-10000.0,0.00045,120]
[360838849,1747064306561,-150.0,0.00045,120]
[360838850,1747064306587,-1534.0,0.00045,120]
[360838851,1747064306614,-480.12439115,0.00045,120]
[360838852,1747064306640,-994.83898287,0.00045,120]
[360838853,1747064306666,-165.03538852,0.00045,120]
[360838854,1747064306692,-540.43,0.00045,120]
[360838855,1747064306717,-3500.0,0.00045,120]
[360838856,1747064306744,-202241.67444666,0.00045,60]
[360838857,1747064306775,-50255.0,0.00045,120]
[360838858,1747064306801,-459886.98947896,0.00045,60]
[360838859,1747064306827,-5170.91,0.00045,120]
[360838860,1747064306852,-5170.91,0.00045,120]
[360838861,1747064306878,-5170.91,0.00045,120]
[360838862,1747064306904,-5170.91,0.00045,120]
[360838863,1747064306930,-5170.91,0.00045,120]
[360838864,1747064306956,-4136.81,0.00045,120]
[360838865,1747064306982,-4136.81,0.00045,120]
[360838866,1747064307008,-4136.81,0.00045,120]
[360838867,1747064307040,-4136.81,0.00045,120]
[360838868,1747064307067,-4136.81,0.00045,120]
[360838869,1747064307092,-826.12,0.00045,120]
[360838870,1747064307120,-826.12,0.00045,120]
[360838871,1747064307148,-826.12,0.00045,120]
[360838872,1747064307178,-826.12,0.00045,120]
[360838873,1747064307205,-826.12,0.00045,120]
[360838874,1747064307232,-3276.94,0.00045,120]
[360838875,1747064307259,-5040.58718739,0.00045,120]
[360838876,1747064307292,-96982.22839945,0.00045,60]
[360838877,1747064307318,-2000.0,0.00045,120]
[360838878,1747064307345,-170.9943163,0.00045,60]
[360838879,1747064307371,-150.0,0.00045,120]
[360838880,1747064307398,-200.0,0.00045,120]
[360838881,1747064307425,-150.0,0.00045,120]
[360838882,1747064307451,-150.0,0.00045,120]
[360838883,1747064307478,-150.0,0.00045005,120]
[360838884,1747064307505,-1400.0,0.00045036,120]
[360838885,1747064307539,-150.0,0.00045044,120]
[360838886,1747064307567,-150.0,0.00045056,120]
[360838887,1747064307593,-1371.79242,0.00045088,30]
[360838888,1747064307619,-677.68911734,0.00045205,120]
[360838889,1747064307814,-150.0,0.00045258,120]
[360838890,1747064307842,-150.0,0.00045262,120]
[360838891,1747064307869,-1371.79242,0.00045288,30]
[360838892,1747064307897,-160.0,0.000453,56]
[360838893,1747064307924,-160.0,0.000453,56]
[360838894,1747064307952,-150.0,0.00045404,120]
[360838895,1747064307980,-150.0,0.00045445,120]
[360838896,1747064308008,-1371.79242,0.00045488,30]
[360838897,1747064308043,-1000.0,0.000455,120]
[360838898,1747064308070,-1400.0,0.00045584,120]
[360838899,1747064308099,-150.0,0.00045599,120]
[360838900,1747064308127,-150.0,0.000456,120]
[360838901,1747064308156,-1371.79242,0.00045688,30]
[360838902,1747064308185,-336.00953064,0.000457,120]
[360838903,1747064308213,-3268.66092848,0.000457,60]
[360838904,1747064308245,-150.0,0.00045741,120]
[360838905,1747064308284,-150.0,0.00045746,120]
[360838906,1747064308314,-280.30596,0.000458,120]
[360838907,1747064308343,-2698.69,0.000458,110]
[360838908,1747064308371,-150.0,0.00045805,30]
[360838909,1747064308400,-150.0,0.00045805,30]
[360838910,1747064308428,-1080.35661418,0.00045805,30]
[360838911,1747064308456,-1040.98087074,0.00045805,30]
[360838912,1747064308484,-150.0,0.00045805,30]
[360838913,1747064308512,-150.0,0.00045805,30]
[360838914,1747064308545,-764.07181109,0.00045805,30]
[360838915,1747064308573,-8477.02609456,0.00045805,30]
[360838916,1747064308600,-150.0,0.00045808,120]
[360838917,1747064308627,-1371.79242,0.00045888,30]
[360838918,1747064308654,-600.0,0.00045899,119]
[360838919,1747064308681,-3430.533799,0.000459,120]
[360838920,1747064308708,-4260.33794462,0.000459,119]
[360838921,1747064308734,-4661.2830638,0.000459,120]
[360838922,1747064308762,-150.0,0.00045928,120]
[360838923,1747064308795,-600.0,0.00045999,46]
[360838924,1747064308821,-600.0,0.00045999,60]
[360838925,1747064308850,-50000.0,0.00046,46]
[360838926,1747064308876,-1201.11564628,0.00046,30]
[360838927,1747064308901,-838.88263968,0.00046,60]
[360838928,1747064308928,-1831.75298511,0.00046,30]
[360838929,1747064308955,-1000.0,0.00046,120]
[360838930,1747064308981,-5000.0,0.00046,30]
[360838931,1747064309007,-6071.28702474,0.00046,120]
[360838932,1747064309039,-1000.0,0.00046,120]
[360838933,1747064309066,-2000.0,0.00046,120]
[360838934,1747064309103,-1200.0,0.00046,120]
[360838935,1747064309142,-900.0,0.00046,47]
[360838936,1747064309183,-10000.0,0.00046,120]
[360838937,1747064309222,-1149.76253686,0.00046,30]
[360838938,1747064309262,-162.0,0.00046,120]
[360838939,1747064309306,-11600.42583927,0.00046,120]
[360838940,1747064309344,-10000.0,0.00046,120]
[360838941,1747064309382,-10000.0,0.00046,120]
[360838942,1747064309421,-10000.0,0.00046,120]
[360838943,1747064309459,-10000.0,0.00046,120]
[360838944,1747064309497,-10000.0,0.00046,120]
[360838945,1747064309538,-10000.0,0.00046,120]
[360838946,1747064309577,-10000.0,0.00046,120]
[360838947,1747064309616,-10000.0,0.00046,120]
[360838948,1747064309655,-10000.0,0.00046,120]
[360838949,1747064309694,-10000.0,0.00046,120]
[360838950,1747064309731,-10000.0,0.00046,120]
[360838951,1747064309767,-10000.0,0.00046,120]
[360838952,1747064309811,-10000.0,0.00046,120]
[360838953,1747064309867,-10000.0,0.00046,120]
[360838954,1747064309912,-10000.0,0.00046,120]
[360838955,1747064309953,-10000.0,0.00046,120]
[360838956,1747064309992,-10000.0,0.00046,120]
[360838957,1747064310033,-10000.0,0.00046,120]
[360838958,1747064310073,-10000.0,0.00046,120]
[360838959,1747064310115,-10000.0,0.00046,120]
[360838960,1747064310156,-10000.0,0.00046,120]
[360838961,1747064310199,-6457.97935542,0.00046,120]
[360838962,1747064310241,-7160.54164938,0.00046,120]
[360838963,1747064310287,-3220.75801328,0.00046,120]
[360838964,1747064310326,-3672.51897292,0.00046,60]
[360838965,1747064310368,-5000.0,0.00046,120]
[360838966,1747064310407,-10614.90409979,0.00046,120]
[360838967,1747064310447,-2086.0,0.0004608,120]
[360838968,1747064310487,-1371.79242,0.00046088,30]
[360838969,1747064310531,-1499.999999,0.000461,120]
[360838970,1747064310569,-1400.0,0.00046132,120]
[360838971,1747064310614,-600.0,0.00046134,35]
[360838972,1747064310653,-600.0,0.00046179,90]
[360838973,1747064310692,-888.0,0.0004621,30]
[360838974,1747064310734,-150.0,0.00046218,120]
[360838975,1747064310777,-1371.79242,0.00046288,30]
[360838976,1747064310817,-160.0,0.000463,60]
[360838977,1747064310858,-160.0,0.000463,60]
[360838978,1747064310899,-600.0,0.00046407,30]
[360838979,1747064310938,-506.34312597,0.0004642,30]
[360838980,1747064310978,-3000.0,0.0004644,35]
[360838981,1747064311018,-229.3814979,0.00046447,30]
[360838982,1747064311066,-150.0,0.00046447,30]
[360838983,1747064311103,-214.50426756,0.00046447,30]
[360838984,1747064311375,-170.41495027,0.00046447,30]
[360838985,1747064311415,-150.0,0.00046447,30]
[360838986,1747064311457,-1458.37934727,0.00046447,30]
[360838987,1747064311500,-150.0,0.00046461,120]
[360838988,1747064311542,-600.0,0.00046468,120]
[360838989,1747064311587,-1371.79242,0.00046488,30]
[360838990,1747064311628,-1000.0,0.000465,120]
[360838991,1747064311669,-2000.0,0.000465,120]
[360838992,1747064311708,-2016.47064496,0.000465,120]
[360838993,1747064311748,-150.0,0.0004652,120]
[360838994,1747064311787,-308.0,0.00046575,30]
[360838995,1747064311825,-1000.0,0.00046575,120]
[360838996,1747064311867,-535.46222433,0.00046575,60]
[360838997,1747064311906,-500.0,0.00046575,120]
[360838998,1747064311945,-500.0,0.00046575,120]
[360838999,1747064311984,-500.0,0.00046575,120]
[360839000,1747064312034,-500.0,0.00046575,120]
[360839001,1747064312078,-1123.0,0.00046575,120]
[360839002,1747064312592,2877673.9937103,0.00046565,44]
[360839003,1747064313844,-5000000.0,0.0004308,60]
[360839004,1747064318994,-5000000.0,0.0004308,60]
[360839005,1747064322317,-656119.71091501,0.0004308,60]
[360839006,1747064322366,-20079.2636224,0.0004308,30]
[360839007,1747064322414,-6850.0,0.0004308,30]
[360839008,1747064322455,-1279.0,0.0004308,30]
[360839009,1747064322497,-15817.11748714,0.0004308,120]
[360839010,1747064322541,-50000.0,0.0004308,30]
[360839011,1747064322581,-50000.0,0.0004308,31]
[360839012,1747064322624,-50000.0,0.0004308,32]
[360839013,1747064322668,-50000.0,0.0004308,33]
[360839014,1747064322716,-50000.0,0.0004308,34]
[360839015,1747064322764,-50000.0,0.0004308,35]
[360839016,1747064322814,-50000.0,0.0004308,36]
[360839017,1747064322856,-50000.0,0.0004308,37]
[360839018,1747064322902,-50000.0,0.0004308,38]
[360839019,1747064322945,-50000.0,0.0004308,39]
[360839020,1747064322983,-6459.0,0.0004308,49]
[360839021,1747064323023,-500.0,0.0004308,120]
[360839022,1747064323069,-500.0,0.0004308,120]
[360839023,1747064323107,-500.0,0.0004308,120]
[360839024,1747064323145,-500.0,0.0004308,120]
[360839025,1747064323189,-500.0,0.0004308,120]
[360839026,1747064323232,-500.0,0.0004308,120]
[360839027,1747064323282,-500.0,0.0004308,120]
[360839028,1747064323323,-500.0,0.0004308,120]
[360839029,1747064323364,-500.0,0.0004308,120]
[360839030,1747064323407,-500.0,0.0004308,120]
[360839031,1747064323451,-500.0,0.0004308,120]
[360839032,1747064323499,-500.0,0.0004308,120]
[360839033,1747064323555,-500.0,0.0004308,120]
[360839034,1747064323597,-500.0,0.0004308,120]
[360839035,1747064323641,-500.0,0.0004308,120]
[360839036,1747064323687,-500.0,0.0004308,120]
[360839037,1747064323728,-500.0,0.0004308,120]
[360839038,1747064323772,-500.0,0.0004308,120]
[360839039,1747064323854,-573.0,0.0004308,120]
[360839040,1747064323897,-1045.50853743,0.0004308,30]
[360839041,1747064323939,-952.01943767,0.0004308,120]
[360839042,1747064323981,-716.96486885,0.0004308,120]
[360839043,1747064324018,-294.17442161,0.0004308,120]
[360839044,1747064324078,-10000.0,0.0004308,31]
[360839045,1747064324118,-4428.0,0.0004308,31]
[360839046,1747064324156,-8857.0,0.0004308,31]
[360839047,1747064324203,-4428.0,0.0004308,31]
[360839048,1747064324253,-4428.0,0.0004308,31]
[360839049,1747064324307,-4428.0,0.0004308,31]
[360839050,1747064324489,-5000.0,0.0004308,35]
[360839051,1747064324549,-400.0,0.0004308,120]
[360839052,1747064324588,-400.0,0.0004308,120]
[360839053,1747064324629,-400.0,0.0004308,120]
[360839054,1747064324669,-186.95206257,0.0004308,120]
[360839055,1747064324708,-309727.44576928,0.0004308,60]
[360839056,1747064324747,-400.0,0.0004308,120]
[360839057,1747064324792,-400.0,0.0004308,120]
[360839058,1747064324832,-3000.0,0.0004308,30]
[360839059,1747064324871,-1056.0,0.0004308,30]
[360839060,1747064324913,-3000.0,0.0004308,30]
[360839061,1747064324954,-3000.0,0.0004308,120]
[360839062,1747064324995,-1500.0,0.0004308,30]
[360839063,1747064325041,-1500.0,0.0004308,30]
[360839064,1747064325083,-3000.0,0.0004308,30]
[360839065,1747064325124,-3000.0,0.0004308,30]
[360839066,1747064325172,-3000.0,0.0004308,30]
[360839067,1747064325228,-1500.0,0.0004308,30]
[360839068,1747064325272,-3096.94550669,0.0004308,60]
[360839069,1747064325320,-1542.37,0.0004308,120]
[360839070,1747064325364,-1542.37,0.0004308,120]
[360839071,1747064325405,-1542.37,0.0004308,120]
[360839072,1747064325446,-1542.37,0.0004308,120]
[360839073,1747064325486,-1542.37,0.0004308,120]
[360839074,1747064325532,-1542.37,0.0004308,120]
[360839075,1747064325575,-1542.37,0.0004308,120]
[360839076,1747064325616,-1542.37,0.0004308,120]
[360839077,1747064325655,-1542.37,0.0004308,120]
[360839078,1747064325697,-1542.37,0.0004308,120]
[360839079,1747064325736,-1542.37,0.0004308,120]
[360839080,1747064325774,-1542.37,0.0004308,120]
[360839081,1747064325820,-1542.37,0.0004308,120]
[360839082,1747064325859,-1542.37,0.0004308,120]
[360839083,1747064325899,-1542.37,0.0004308,120]
[360839084,1747064325940,-1542.37,0.0004308,120]
[360839085,1747064325979,-1542.37,0.0004308,120]
[360839086,1747064326019,-1542.37,0.0004308,120]
[360839087,1747064326066,-1542.37,0.0004308,120]
[360839088,1747064326106,-1542.37,0.0004308,120]
[360839089,1747064326147,-1542.37,0.0004308,120]
[360839090,1747064326188,-1542.37,0.0004308,120]
[360839091,1747064326233,-1542.37,0.0004308,120]
[360839092,1747064326274,-1542.44012781,0.0004308,120]
[360839093,1747064326320,-1332.81166811,0.0004308,120]
[360839094,1747064326362,-371.23496481,0.0004308,91]
[360839095,1747064326403,-1186.70261507,0.0004308,120]
[360839096,1747064326445,-354.19732506,0.0004308,120]
[360839097,1747064326487,-394.21673088,0.0004308,120]
[360839098,1747064326532,-500.0,0.0004308,120]
[360839099,1747064326573,-500.0,0.0004308,120]
[360839100,1747064326614,-259.80107675,0.0004308,120]
[360839101,1747064326654,-2360.0,0.0004308,120]
[360839102,1747064326693,-215.64851228,0.0004308,120]
[360839103,1747064326734,-7467.19,0.0004308,120]
[360839104,1747064326778,-7467.19,0.0004308,120]
[360839105,1747064326823,-7467.19,0.0004308,120]
[360839106,1747064326866,-7467.19,0.0004308,120]
[360839107,1747064326910,-7467.19,0.0004308,120]
[360839108,1747064326953,-7467.19,0.0004308,120]
[360839109,1747064326996,-7467.19,0.0004308,120]
[360839110,1747064327040,-7467.19,0.0004308,120]
[360839111,1747064327081,-7467.19,0.0004308,120]
[360839112,1747064327124,-7467.19,0.0004308,120]
[360839113,1747064327167,-7467.19,0.0004308,120]
[360839114,1747064327214,-7467.19,0.0004308,120]
[360839115,1747064327258,-7467.19,0.0004308,120]
[360839116,1747064327308,-7467.19,0.0004308,120]
[360839117,1747064327355,-7467.19,0.0004308,120]
[360839118,1747064327402,-7467.19,0.0004308,120]
[360839119,1747064327447,-7467.19,0.0004308,120]
[360839120,1747064327492,-7467.19,0.0004308,120]
[360839121,1747064327539,-7467.19,0.0004308,120]
[360839122,1747064327581,-7467.19,0.0004308,120]
[360839123,1747064327623,-7467.19,0.0004308,120]
[360839124,1747064327665,-7467.19,0.0004308,120]
[360839125,1747064327706,-7467.19,0.0004308,120]
[360839126,1747064327748,-7467.19131745,0.0004308,120]
[360839127,1747064327791,-196.19359419,0.0004308,60]
[360839128,1747064327832,-1017.8082066,0.0004308,90]
[360839129,1747064327875,-2614.54950304,0.0004308,120]
[360839130,1747064327918,-411.60181167,0.0004308,60]
[360839131,1747064327959,-358.902699,0.0004308,120]
[360839132,1747064328000,-345.0642895,0.0004308,120]
[360839133,1747064328041,-2226.36374294,0.0004308,120]
[360839134,1747064328085,-340.89349904,0.0004308,120]
[360839135,1747064328129,-1676.06897323,0.0004308,120]
[360839136,1747064328169,-292.53278874,0.0004308,120]
[360839137,1747064328365,-375.86509679,0.0004308,60]
[360839138,1747064328412,-388.47432876,0.0004308,120]
[360839139,1747064328459,-660.8870327,0.0004308,120]
[360839140,1747064328504,-1640.28599139,0.0004308,120]
[360839141,1747064328547,-224.29959089,0.0004308,120]
[360839142,1747064328591,-1648.53155933,0.0004308,120]
[360839143,1747064328638,-201.10692006,0.0004308,60]
[360839144,1747064328681,-1920.62938105,0.0004308,120]
[360839145,1747064328721,-630.43604431,0.0004308,120]
[360839146,1747064328763,-2678.77054033,0.0004308,120]
[360839147,1747064328808,-2790.56170325,0.0004308,120]
[360839148,1747064328849,-748.58134814,0.0004308,120]
[360839149,1747064328890,-286.15147441,0.0004308,120]
[360839150,1747064328930,-2756.8054235,0.0004308,120]
[360839151,1747064328971,-796.22188981,0.0004308,60]
[360839152,1747064329012,-1445.26803099,0.0004308,120]
[360839153,1747064329060,-406.0589456,0.0004308,120]
[360839154,1747064329102,-485.87465553,0.0004308,120]
[360839155,1747064329144,-212.5209816,0.0004308,120]
[360839156,1747064329187,-1547.48584529,0.0004308,120]
[360839157,1747064329231,-688.11038156,0.0004308,120]
[360839158,1747064329274,-180.72876402,0.0004308,120]
[360839159,1747064329326,-1294.29513008,0.0004308,45]
[360839160,1747064329367,-308.1852804,0.0004308,60]
[360839161,1747064329411,-420.28162761,0.0004308,60]
[360839162,1747064329454,-2952.40614371,0.0004308,30]
[360839163,1747064329498,-50000.0,0.0004308,30]
[360839164,1747064329542,-3000.0,0.0004308,30]
[360839165,1747064329584,-3000.0,0.0004308,120]
[360839166,1747064329627,-3000.0,0.0004308,30]
[360839167,1747064329669,-750.0,0.0004308,30]
[360839168,1747064329710,-2553.0,0.0004308,50]
[360839169,1747064329749,-170.29430915,0.0004308,120]
[360839170,1747064329788,-170.29430916,0.0004308,120]
[360839171,1747064329827,-3679.0,0.0004308,49]
[360839172,1747064329871,-10984.02293188,0.0004308,120]
[360839173,1747064329910,-37353.36396074,0.0004308,30]
[360839174,1747064329950,-3000.0,0.0004308,30]
[360839175,1747064329991,-1875.0,0.0004308,30]
[360839176,1747064330036,-1185.0,0.0004308,120]
[360839177,1747064330079,-3349.58087329,0.0004308,30]
[360839178,1747064330126,-2437.0,0.0004308,30]
[360839179,1747064330172,-309220.40543014,0.0004308,60]
[360839180,1747064330222,-1219.0,0.0004308,30]
[360839181,1747064330265,-697.7771208,0.0004308,120]
[360839182,1747064330311,-2298.40352477,0.0004308,120]
[360839183,1747064330353,-609.0,0.0004308,30]
[360839184,1747064330399,-305.0,0.0004308,30]
[360839185,1747064330443,-373.0,0.0004308,120]
[360839186,1747064330486,-1629140.776056,0.0004308,90]
[360839187,1747064330527,-11292.89740136,0.0004308,90]
[360839188,1747064330572,-190000.0,0.0004308,120]
[360839189,1747064330615,-2620.0,0.0004308,120]
[360839190,1747064330656,-173.99433481,0.0004308,120]
[360839191,1747064330699,-266.099999,0.0004308,30]
[360839192,1747064330742,-219.3,0.0004308,30]
[360839193,1747064330783,-158.5,0.0004308,30]
[360839194,1747064330823,-208.5,0.0004308,30]
[360839195,1747064330867,-500.0,0.0004308,120]